bitfinex-derivatives/quotes_ETHF0:USTF0_20250416
["timestamp","ask_amount","ask_price","bid_price","bid_amount"]
[1744790844791,4.98305571,1564.7,1564.6,43.77482]
[1744790844990,6.59965571,1564.7,1564.6,43.77482]
[1744790845292,3.70472571,1564.7,1564.6,43.77482]
[1744790845484,0.49692571,1564.7,1564.6,49.92232]
[1744790845684,0.00958589,1564.8,1564.7,1.2783]
[1744790845890,0.50657567,1564.8,1564.7,7.8528]
[1744790846292,0.50657567,1564.8,1564.7,12.8528]
[1744790846793,0.49698978,1564.8,1564.7,12.8528]
[1744790846991,1.27779,1565.4,1565.3,1.27781]
[1744790847292,2.90499,1565.4,1565.3,6.15581]
[1744790847493,2.90499,1565.4,1565.3,4.878]
[1744790847687,2.90499,1565.4,1565.3,6.15581]
[1744790847882,2.90499,1565.4,1565.3,4.878]
[1744790848385,2.90499,1565.4,1565.3,6.15581]
[1744790848590,2.90499,1565.4,1565.3,4.878]
[1744790850497,2.90499,1565.4,1565.2,1.27788]
[1744790850498,1.27781,1565.3,1565.2,1.27788]
[1744790850795,1.27789,1565.2,1565.1,4.878]
[1744790850991,3.56009,1565.2,1565.1,4.878]
[1744790851295,5.20469,1565.2,1565.1,4.878]
[1744790852893,1.27805,1565.0,1564.9,3.03287]
[1744790853085,1.27805,1565.0,1564.9,7.91087]
[1744790853795,2.98995,1565.0,1564.9,7.91087]
[1744790855499,2.98995,1565.0,1564.9,6.15607]
[1744790856004,4.48578,1565.1,1565.0,1.27805]
[1744790856297,4.48577,1565.1,1565.0,3.01055]
[1744790856894,6.23697,1565.1,1565.0,3.01055]
[1744790857097,3.2078,1565.1,1565.0,3.01055]
[1744790857701,8.08440639,1565.4,1565.1,1.27797]
[1744790857900,3.02905,1565.3,1565.2,1.27781]
[1744790858104,3.02905,1565.3,1565.2,3.01031]
[1744790858291,6.23685,1565.3,1565.2,3.01031]
[1744790858496,9.36225639,1565.3,1565.2,3.01031]
[1744790858999,12.57005639,1565.3,1565.2,3.01031]
[1744790859207,1.27797,1565.2,1564.9,4.878]
[1744790859402,1.27797,1565.2,1565.0,1.27803]
[1744790859403,4.48585,1565.1,1565.0,1.27803]
[1744790859701,5.66345,1565.1,1565.0,1.27803]
[1744790859904,7.40695,1565.1,1565.0,1.27803]
[1744790860097,1.27805,1565.0,1564.9,7.84769]
[1744790860297,3.02155,1565.0,1564.9,6.15609]
[1744790861304,1.27822,1564.9,1564.8,1.27818]
[1744790861507,1.27835,1564.7,1564.6,1.27828]
[1744790861704,1.27835,1564.7,1564.5,4.89716589]
[1744790861705,1.27838,1564.6,1564.5,0.00958589]
[1744790862007,7.0589,1564.6,1564.1,11.70991878]
[1744790862201,3.2078,1564.2,1564.1,11.45214878]
[1744790862398,4.48638,1564.4,1564.1,50.46965487]
[1744790862603,4.48638,1564.4,1564.3,1.27862]
[1744790862808,4.47707609,1564.4,1564.3,1.27862]
[1744790863002,3.19849609,1564.4,1564.3,1.27862]
[1744790863411,4.83319609,1564.4,1564.3,1.27862]
[1744790863806,3.19849609,1564.4,1564.3,1.27862]
[1744790864011,0.00958589,1564.5,1564.4,1.27854]
[1744790865219,7.14822631,1565.0,1564.9,1.27813]
[1744790865607,8.42627631,1565.0,1564.9,1.27813]
[1744790865808,7.14822631,1565.0,1564.9,1.27813]
[1744790866013,8.42627631,1565.0,1564.9,1.27813]
[1744790866213,7.14822631,1565.0,1564.9,1.27813]
[1744790866712,1.6502,1565.0,1564.9,1.27813]
[1744790867420,2.92825,1565.0,1564.9,1.27813]
[1744790867714,1.27813,1564.9,1564.8,48.08165]
[1744790867913,2.92833,1564.9,1564.8,46.92615]
[1744790868118,6.13613,1564.9,1564.8,45.648]
[1744790868923,1.27836,1564.7,1564.6,6.12634]
[1744790869120,3.56498,1564.8,1564.7,1.2783]
[1744790873327,3.56498,1564.8,1564.6,45.648]
[1744790873629,4.4861,1564.7,1564.6,46.9263]
[1744790873927,4.4861,1564.7,1564.6,4.848]
[1744790874130,4.4861,1564.7,1564.6,6.12638]
[1744790875425,2.2867,1564.8,1564.7,1.2783]
[1744790875632,6.33548702,1564.9,1564.8,1.27822]
[1744790876028,7.61361702,1564.9,1564.8,1.27822]
[1744790876424,10.82141702,1564.9,1564.8,1.27822]
[1744790877026,4.48593,1564.9,1564.8,1.27822]
[1744790877833,1.27828,1564.8,1564.7,1.27823]
[1744790878733,1.2783,1564.7,1564.6,6.12629]
[1744790879527,11.40356,1564.7,1564.2,0.00958589]
[1744790879833,4.48642,1564.3,1564.2,0.00958589]
[1744790880030,4.48642,1564.3,1564.2,1.27899198]
[1744790880432,4.48642,1564.3,1564.2,0.00028198]
[1744790880732,4.48642,1564.3,1564.2,1.27899198]
[1744790881637,3.2078,1564.3,1564.2,1.27899198]
[1744790881930,3.2078,1564.3,1564.2,7.88119198]
[1744790882123,0.00930391,1564.4,1564.3,1.27862]
[1744790882326,1.1647,1564.6,1564.3,1.27862]
[1744790882327,1.27848,1564.5,1564.4,1.27846]
[1744790882523,1.1647,1564.6,1564.5,1.27846]
[1744790882927,2.44308,1564.6,1564.5,1.27846]
[1744790883535,1.1647,1564.6,1564.5,1.27846]
[1744790883833,2.09336224,1564.8,1564.7,1.2783]
[1744790884232,0.81512224,1564.8,1564.6,1.6045]
[1744790884430,2.09339224,1564.8,1564.7,1.2783]
[1744790885136,1.2783,1564.7,1564.6,2.88282]
[1744790885335,9.72560603,1564.8,1564.7,1.2783]
[1744790886537,1.27838,1564.6,1564.5,6.0544]
[1744790886929,4.48617,1564.7,1564.6,1.27838]
[1744790887123,1.27833,1564.7,1564.5,9.58313]
[1744790887329,1.27833,1564.7,1564.6,1.27831]
[1744790887831,4.48613,1564.7,1564.6,1.27831]
[1744790888029,1.27833,1564.7,1564.6,1.27831]
[1744790888234,1.27838,1564.6,1564.5,6.0544]
[1744790889142,1.27838,1564.6,1564.5,4.776]
[1744790889334,1.27862,1564.3,1564.2,0.00028198]
[1744790889637,1.28773193,1564.2,1564.1,6.05479]
[1744790889938,3.00701,1564.2,1564.1,46.84576807]
[1744790890154,2.2305,1564.5,1564.4,1.27854]
[1744790890439,2.22119609,1564.5,1564.4,1.27854]
[1744790890632,1.1213,1564.5,1564.4,6.05454]
[1744790890832,5.60756,1564.5,1564.4,6.05454]
[1744790891136,3.2078,1564.5,1564.4,6.05454]
[1744790891537,3.0066,1564.7,1564.6,1.27838]
[1744790891738,1.7283,1564.7,1564.5,1.6748]
[1744790891931,3.0066,1564.7,1564.6,1.27838]
[1744790892242,1.27838,1564.6,1564.5,2.95318]
[1744790892431,3.04188,1564.6,1564.5,2.95318]
[1744790893142,6.24968,1564.6,1564.5,2.95318]
[1744790893337,4.9713,1564.6,1564.5,1.27838]
[1744790893642,1.7635,1564.6,1564.5,1.27838]
[1744790893843,3.04188,1564.6,1564.5,2.89068]
[1744790894238,6.24968,1564.6,1564.5,1.27838]
[1744790895344,1.27846,1564.5,1564.4,6.05448]
[1744790895545,2.99016,1564.5,1564.4,7.79398]
[1744790895843,2.99016,1564.5,1564.4,4.776]
[1744790896846,1.27854,1564.4,1564.3,0.00958589]
[1744790897137,8.42764,1564.4,1564.3,0.00958589]
[1744790898141,7.1491,1564.4,1564.3,1.28820589]
[1744790898440,4.48625,1564.6,1564.5,1.27846]
[1744790898642,4.4541,1564.6,1564.5,1.27846]
[1744790899142,15.01536475,1564.6,1564.5,1.27846]
[1744790899741,17.92334475,1564.6,1564.5,2.89476]
[1744790900044,16.64496475,1564.6,1564.5,2.89476]
[1744790900245,15.39866475,1564.6,1564.5,2.89476]
[1744790900446,16.67704475,1564.6,1564.5,2.89476]
[1744790900643,10.56126475,1564.6,1564.5,2.89476]
[1744790901439,11.83964475,1564.6,1564.5,2.89476]
[1744790901647,1.27838,1564.6,1564.5,2.89476]
[1744790901852,4.48618,1564.6,1564.5,2.8947]
[1744790902145,6.13258,1564.6,1564.5,1.6163]
[1744790902349,1.27846,1564.5,1564.4,1.27849]
[1744790902536,2.92486,1564.5,1564.4,2.87569]
[1744790903547,1.27854,1564.4,1564.3,6.06414589]
[1744790903843,6.13274,1564.4,1564.3,0.00958589]
[1744790906551,1.27903,1563.9,1563.8,4.776]
[1744790906847,1.27912,1563.7,1563.6,7.80678]
[1744790907045,1.27912,1563.7,1563.6,48.60678]
[1744790907251,1.27912,1563.7,1563.6,48.59747609]
[1744790907550,2.92322,1563.7,1563.6,48.59747609]
[1744790907740,2.92322,1563.7,1563.6,47.31829609]
[1744790907940,2.92322,1563.7,1563.6,4.776]
[1744790908140,1.2792,1563.6,1563.5,12.7331384]
[1744790908343,7.3504,1563.6,1563.5,12.7331384]
[1744790909449,7.3504,1563.6,1563.5,1.28886589]
[1744790909652,6.0712,1563.6,1563.5,1.28886589]
[1744790909853,7.3504,1563.6,1563.5,1.28886589]
[1744790910447,7.3504,1563.6,1563.5,0.00958589]
[1744790913647,1.27944,1563.3,1563.0,10.29952]
[1744790913846,4.48724,1563.3,1563.2,40.8]
[1744790914249,1.27952,1563.2,1563.1,1.27956]
[1744790914750,1.27961,1563.1,1563.0,6.06727589]
[1744790914950,1.27961,1563.1,1563.0,4.78758589]
[1744790915141,1.27992,1562.8,1562.7,1.27992]
[1744790915746,1.27992,1562.8,1562.7,42.07992]
[1744790916249,1.27992,1562.8,1562.7,40.8]
[1744790916547,1.27993,1562.7,1562.6,4.70758589]
[1744790916855,4.48773,1562.7,1562.6,4.70758589]
[1744790917055,3.2078,1562.7,1562.6,5.98760589]
[1744790917949,4.48773,1562.7,1562.6,4.70758589]
[1744790919556,4.48773,1562.7,1562.6,0.00958589]
[1744790920055,4.48773,1562.7,1562.6,1.28960589]
[1744790920257,3.2078,1562.7,1562.6,1.28960589]
[1744790920756,4.48773,1562.7,1562.6,1.28960589]
[1744790922354,4.48773,1562.7,1562.6,0.00958589]
[1744790922650,4.48773,1562.7,1562.6,1.28960589]
[1744790922857,4.49721589,1562.9,1562.8,1.27985]
[1744790923048,1.27988,1562.8,1562.7,1.27988]
[1744790923455,6.41686589,1562.9,1562.6,1.61648589]
[1744790923643,1.27985,1562.8,1562.7,1.2799]
[1744790924157,1.27993,1562.7,1562.6,2.89643589]
[1744790924560,4.48773,1562.7,1562.6,2.89643589]
[1744790924857,4.48773,1562.7,1562.6,40.80958589]
[1744790925156,1.27992,1562.8,1562.7,1.2799]
[1744790925353,3.2078,1562.8,1562.7,1.2799]
[1744790925547,3.2078,1562.8,1562.7,3.0396]
[1744790925750,4.48765,1562.8,1562.7,3.0396]
[1744790925959,3.2078,1562.8,1562.7,3.0396]
[1744790928058,1.27993,1562.7,1562.6,46.79056589]
[1744790928658,4.4877,1562.8,1562.7,1.27993]
[1744790929359,6.144,1562.8,1562.7,1.27993]
[1744790929553,1.27993,1562.7,1562.6,43.75662589]
[1744790929748,1.27993,1562.7,1562.6,42.47668589]
[1744790930054,2.93623,1562.7,1562.6,43.75670589]
[1744790930255,2.93623,1562.7,1562.6,42.47668589]
[1744790931059,2.93623,1562.7,1562.6,43.75670589]
[1744790931260,1.6563,1562.7,1562.6,43.75670589]
[1744790931459,2.93623,1562.7,1562.6,43.75670589]
[1744790931958,2.93623,1562.7,1562.6,42.47668589]
[1744790932350,6.6563,1562.7,1562.4,4.701]
[1744790932554,1.28018,1562.4,1562.3,3.02076]
[1744790932766,1.28018,1562.4,1562.3,1.7405]
[1744790933059,2.96498,1562.4,1562.3,3.02076]
[1744790933657,1.28026,1562.3,1562.2,0.00958589]
[1744790933853,6.17286,1562.3,1562.2,0.00958589]
[1744790934052,11.17286,1562.3,1562.2,0.00958589]
[1744790935358,1.28059,1561.9,1561.8,4.701]
[1744790935553,4.48847,1561.9,1561.6,6.319]
[1744790935762,1.6735,1561.8,1561.6,7.59977]
[1744790936059,1.28075,1561.7,1561.6,4.701]
[1744790936362,1.28084,1561.6,1561.5,1.28087]
[1744790936562,1.6735,1561.6,1561.5,43.70845589]
[1744790936962,2.95434,1561.6,1561.5,42.42758589]
[1744790937362,9.87569,1561.6,1560.8,15.92710251]
[1744790937561,4.48884,1561.4,1561.3,1.28108]
[1744790937860,1.28108,1561.3,1561.2,1.2811]
[1744790938060,1.7289,1561.3,1561.2,1.2811]
[1744790938260,3.00998,1561.3,1561.1,2.89918]
[1744790938457,1.7289,1561.3,1561.2,1.28116]
[1744790938663,3.2078,1561.4,1561.3,1.28108]
[1744790939054,3.2078,1561.4,1561.3,5.98308]
[1744790940064,1.28079,1561.7,1561.5,1.28092]
[1744790940266,1.28084,1561.6,1561.5,1.28092]
[1744790940460,1.28092,1561.5,1561.4,3.05164]
[1744790940665,4.48872,1561.6,1561.4,3.05164]
[1744790940867,3.2078,1561.6,1561.5,1.28092]
[1744790941062,3.2078,1561.6,1561.5,2.90132]
[1744790941563,3.2078,1561.6,1561.5,7.90132]
[1744790941861,0.00958589,1561.8,1561.7,1.28075]
[1744790942566,0.00958589,1561.8,1561.7,4.16825]
[1744790942862,0.00958589,1561.8,1561.7,12.37605]
[1744790943453,0.00958589,1561.8,1561.7,9.16825]
[1744790943956,0.00958589,1561.8,1561.7,49.96825]
[1744790945066,1.29025589,1561.8,1561.7,44.96825]
[1744790945268,4.49805589,1561.8,1561.7,1.28075]
[1744790945461,4.49805589,1561.8,1561.7,3.03415]
[1744790947363,3.21738589,1561.8,1561.7,3.03415]
[1744790947863,4.49805589,1561.8,1561.7,3.03415]
[1744790948165,1.28075,1561.7,1561.6,46.78377]
[1744790948366,2.92055,1561.7,1561.6,46.78377]
[1744790948770,2.92055,1561.7,1561.6,4.703]
[1744790949158,2.92055,1561.7,1561.6,5.98384]
[1744790949466,2.92055,1561.7,1561.6,4.703]
[1744790949669,1.28098,1561.5,1561.4,1.28094]
[1744790949868,1.28098,1561.5,1561.2,7.82479]
[1744790949869,1.281,1561.4,1561.3,1.28101]
[1744790950069,1.7031,1561.4,1561.3,1.28101]
[1744790950684,1.7031,1561.4,1561.2,48.3865]
[1744790950979,1.28108,1561.3,1561.2,46.70309]
[1744790951178,4.48888,1561.3,1561.2,46.70309]
[1744790951974,3.2078,1561.3,1561.2,46.70309]
[1744790952581,6.19198,1561.3,1561.2,46.70309]
[1744790953578,4.9109,1561.3,1561.2,46.70309]
[1744790953776,6.19198,1561.3,1561.2,46.70309]
[1744790954174,6.19198,1561.3,1561.0,4.62910862]
[1744790954175,1.28125,1561.1,1561.0,4.62910862]
[1744790954380,4.48905,1561.1,1561.0,4.62910862]
[1744790954583,4.48905,1561.1,1561.0,0.00610862]
[1744790954784,6.15855,1561.1,1561.0,0.00610862]
[1744790956183,6.15855,1561.1,1560.2,4.623]
[1744790956184,3.20333,1561.0,1560.2,4.623]
[1744790956388,1.28171,1560.6,1560.4,2.88967]
[1744790956775,1.28171,1560.6,1560.5,40.8]
[1744790956985,1.28171,1560.6,1560.5,42.4079]
[1744790957480,3.03531,1560.6,1560.5,42.4079]
[1744790957881,6.24311,1560.6,1560.5,40.8]
[1744790958282,1.28182,1560.4,1560.3,1.2819]
[1744790958485,6.24313,1560.6,1560.5,1.28174]
[1744790958687,1.28174,1560.5,1560.4,1.28175]
[1744790959287,1.28174,1560.5,1560.4,1.28182]
[1744790959488,1.7536,1560.6,1560.4,1.28182]
[1744790959783,1.28174,1560.5,1560.4,1.28182]
[1744790960994,1.28182,1560.4,1560.3,42.08183]
[1744790961291,2.89322,1560.4,1560.3,42.08183]
[1744790962089,3.2078,1560.6,1560.5,1.28174]
[1744790962390,0.00958589,1560.7,1560.6,1.28166]
[1744790962588,1.29115589,1560.7,1560.6,1.28166]
[1744790962992,0.00958589,1560.7,1560.6,1.28166]
[1744790963192,1.68498589,1560.7,1560.4,1.277]
[1744790963490,1.28214,1560.1,1560.0,1.28211]
[1744790963795,1.28205,1560.2,1560.1,1.28202]
[1744790963985,1.28205,1560.2,1560.1,42.08202]
[1744790964188,2.95745,1560.2,1560.1,42.08202]
[1744790964390,2.95745,1560.2,1560.1,40.8]
[1744790964786,4.22815,1560.2,1560.1,40.8]
[1744790965199,1.28215,1560.0,1559.7,1.2549]
[1744790965494,1.28235,1559.8,1559.7,4.625]
[1744790965683,6.09277,1559.9,1559.8,1.28231]
[1744790965885,3.2078,1559.9,1559.8,1.28231]
[1744790966081,3.2078,1559.9,1559.8,2.54311]
[1744790966292,0.00961692,1560.0,1559.9,1.28223]
[1744790966590,0.00961692,1560.0,1559.8,2.54307]
[1744790966795,1.28231,1559.8,1559.7,46.70734]
[1744790967091,3.2078,1559.9,1559.8,1.28231]
[1744790967092,1.28229,1559.9,1559.8,1.28231]
[1744790967295,1.6027,1559.9,1559.7,46.70736]
[1744790967486,1.28231,1559.8,1559.7,46.70738]
[1744790967683,2.88495,1559.9,1559.8,1.28231]
[1744790967989,1.6027,1559.9,1559.8,1.28231]
[1744790968294,1.28231,1559.8,1559.7,46.7074]
[1744790968482,1.28231,1559.8,1559.7,45.425]
[1744790968684,2.97521,1559.8,1559.7,40.8]
[1744790968896,1.28245,1559.7,1559.5,5.8998]
[1744790969188,2.97535,1559.7,1559.6,1.28246]
[1744790969590,2.97535,1559.7,1559.6,2.95046]
[1744790969790,6.18317,1559.7,1559.6,1.28248]
[1744790970289,6.18317,1559.7,1559.6,1.668]
[1744790970595,6.18317,1559.7,1559.6,2.95048]
[1744790971096,6.18317,1559.7,1559.6,1.28248]
[1744790971287,0.00961692,1560.0,1559.9,1.28223]
[1744790971495,1.66961692,1560.0,1559.9,1.28223]
[1744790971690,2.95180692,1560.0,1559.9,1.28223]
[1744790971996,1.28223,1559.9,1559.8,6.3229]
[1744790972193,2.94223,1559.9,1559.8,7.60521]
[1744790972492,2.94223,1559.9,1559.8,1.28231]
[1744790972695,4.86577,1559.9,1559.5,43.27435]
[1744790972888,4.39298,1559.8,1559.5,41.9918]
[1744790973091,1.28248,1559.6,1559.5,44.97119]
[1744790973396,1.28248,1559.6,1559.5,43.77939]
[1744790973694,1.28272,1559.3,1559.2,1.2186]
[1744790973892,1.28269,1559.4,1559.3,1.28269]
[1744790974092,1.28269,1559.4,1559.3,40.8]
[1744790974292,3.20738,1559.1,1558.4,3.2078]
[1744790974497,7.204,1559.0,1558.8,1.28308]
[1744790974694,3.2078,1559.2,1558.8,40.8]
[1744790974993,0.00961692,1559.1,1559.0,1.28297]
[1744790975191,6.16042,1559.8,1559.3,3.20682]
[1744790975387,6.16042,1559.8,1559.4,10.96822]
[1744790975589,1.6703,1559.8,1559.7,1.2824]
[1744790975799,5.66289,1560.0,1559.7,4.77]
[1744790975997,1.28223,1559.9,1559.8,1.28228]
[1744790976291,1.28223,1559.9,1559.8,3.05535]
[1744790976487,1.28231,1559.8,1559.7,4.77961692]
[1744790976688,4.49011,1559.8,1559.7,0.00961692]
[1744790976894,3.2078,1559.8,1559.7,1.29201692]
[1744790977096,4.39031692,1560.0,1559.9,1.28223]
[1744790977299,5.99911692,1560.0,1559.9,1.28223]
[1744790977503,1.28223,1559.9,1559.8,1.6215]
[1744790977692,1.6088,1559.9,1559.7,0.00961692]
[1744790977991,2.89109,1559.9,1559.7,1.29198692]
[1744790978197,4.39031692,1560.0,1559.9,1.28223]
[1744790978397,4.82621692,1560.0,1559.9,1.28223]
[1744790978597,6.10841692,1560.0,1559.8,4.16876]
[1744790978799,6.10842692,1560.0,1559.8,4.16876]
[1744790979097,4.82621692,1560.0,1559.8,4.16876]
[1744790979294,1.6088,1559.9,1559.8,4.16876]
[1744790979798,4.49960692,1560.0,1559.9,1.28223]
[1744790980000,3.21741692,1560.0,1559.9,1.28223]
[1744790980190,3.21741692,1560.0,1559.9,3.01013]
[1744790981992,0.00961692,1560.0,1559.9,3.01013]
[1744790982593,0.00961692,1560.0,1559.9,8.01013]
[1744790983197,3.2078,1560.4,1560.3,1.2819]
[1744790983602,3.2078,1560.4,1560.3,42.0819]
[1744790983802,3.2078,1560.4,1560.3,43.6913]
[1744790984000,1.6886,1560.5,1560.4,1.28182]
[1744790984204,1.6886,1560.5,1560.4,2.89122]
[1744790984394,0.00961692,1560.6,1560.5,1.28174]
[1744790984590,9.07213148,1560.9,1560.8,1.28149]
[1744790984793,4.17573148,1560.9,1560.8,6.05049]
[1744790985005,4.17573148,1560.9,1560.8,11.05049]
[1744790985295,4.14095828,1560.9,1560.8,11.05049]
[1744790985704,2.51735828,1560.9,1560.8,11.05049]
[1744790985904,8.28e-06,1560.9,1560.8,140.72649]
[1744790987000,4.48921828,1560.9,1560.8,45.569]
[1744790987203,1.63290828,1560.9,1560.8,46.85049]
[1744790987497,1.63290828,1560.9,1560.8,6.05049]
[1744790987498,6.12211,1560.9,1560.8,6.05049]
[1744790987701,9.8407,1560.9,1560.1,3.20516]
[1744790987896,3.2078,1560.6,1560.2,4.96617]
[1744790988190,1.28163,1560.7,1560.4,1.28182]
[1744790988395,1.28166,1560.6,1560.5,1.28167]
[1744790988603,2.91454,1560.7,1560.5,1.28167]
[1744790988800,2.91456,1560.6,1560.5,3.04294]
[1744790989201,1.6329,1560.6,1560.5,3.04294]
[1744790989402,4.4257,1560.8,1560.6,1.28164]
[1744790989606,2.90437,1560.7,1560.6,1.28164]
[1744790989904,1.6228,1560.7,1560.6,1.28164]
[1744790990104,2.90437,1560.7,1560.6,1.28164]
[1744790990312,4.4257,1560.8,1560.7,1.28157]
[1744790990700,1.29100692,1561.0,1560.9,1.28141]
[1744790990701,0.00961692,1561.0,1560.9,1.28141]
[1744790992410,1.28141,1560.9,1560.8,3.01463]
[1744790992708,2.93731,1560.9,1560.8,3.01463]
[1744790993605,1.28149,1560.8,1560.7,4.768]
[1744790993811,7.32379,1560.8,1560.7,4.768]
[1744790994107,7.32379,1560.8,1560.5,2.94761]
[1744790994108,12.2109,1560.8,1560.5,4.768]
[1744790994310,1.6559,1560.7,1560.6,1.28166]
[1744790994507,1.6559,1560.7,1560.6,2.94756]
[1744790994700,1.6559,1560.7,1560.6,1.28166]
[1744790994902,1.6559,1560.7,1560.6,2.94756]
[1744790996311,1.6559,1560.7,1560.6,1.28166]
[1744790996709,1.1786,1560.8,1560.7,1.28157]
[1744790996904,1.71181692,1561.0,1560.9,1.28141]
[1744790997104,0.00961692,1561.0,1560.9,1.28141]
[1744790997603,0.00961692,1561.0,1560.9,2.94081]
[1744790997802,0.00961692,1561.0,1560.9,11.14861]
[1744790998003,0.00961692,1561.0,1560.9,7.94081]
[1744790998200,0.00961692,1561.0,1560.9,11.14861]
[1744790998514,0.00961692,1561.0,1560.9,2.94081]
[1744790998706,0.00961692,1561.0,1560.9,11.14861]
[1744790999012,1.7022,1561.4,1561.3,1.28108]
[1744790999204,1.7022,1561.4,1561.3,46.84808]
[1744790999399,2.9832,1561.4,1561.3,46.84808]
[1744790999603,2.9832,1561.4,1561.3,45.567]
[1744790999807,4.90471,1561.4,1561.1,4.767]
[1744791000004,3.2078,1561.2,1560.8,4.767]
[1744791000211,4.24273,1561.1,1561.0,1.28133]
[1744791000614,2.9614,1561.1,1561.0,1.28133]
[1744791001004,2.9614,1561.1,1561.0,2.97653]
[1744791001612,3.2078,1561.2,1561.1,1.28125]
[1744791001815,0.00961692,1561.4,1561.3,1.28108]
[1744791002114,1.29061692,1561.4,1561.3,1.28108]
[1744791002311,1.28116,1561.2,1561.1,6.04819]
[1744791002612,1.28129,1561.1,1561.0,6.04826]
[1744791002814,4.20339,1561.1,1561.0,6.04826]
[1744791003111,5.37449,1561.1,1561.0,4.767]
[1744791003608,5.37449,1561.1,1561.0,6.04833]
[1744791003810,5.37449,1561.1,1561.0,4.767]
[1744791004113,10.37449,1561.1,1561.0,4.767]
[1744791004303,1.28141,1560.9,1560.8,45.57661692]
[1744791004505,3.2078,1560.9,1560.8,46.85810692]
[1744791004700,2.92175,1561.0,1560.9,1.28141]
[1744791004909,1.6404,1561.0,1560.9,1.28141]
[1744791005303,1.6404,1561.0,1560.9,2.92571]
[1744791005502,2.92173,1561.0,1560.9,1.28141]
[1744791005711,1.6404,1561.0,1560.9,1.28141]
[1744791005915,2.92173,1561.0,1560.9,1.28141]
[1744791006210,1.6404,1561.0,1560.9,1.28141]
[1744791006805,1.6404,1561.0,1560.9,2.92571]
[1744791007007,1.2747,1561.1,1561.0,1.28133]
[1744791007207,1.2747,1561.1,1561.0,2.92563]
[1744791008317,3.2078,1561.3,1561.2,1.28116]
[1744791008513,6.13418,1561.3,1561.2,1.28116]
[1744791008817,1.28116,1561.2,1561.1,6.13517]
[1744791009016,2.92646,1561.2,1561.1,6.13517]
[1744791009410,2.92646,1561.2,1561.1,4.854]
[1744791010418,1.28133,1561.0,1560.9,6.13538]
[1744791010619,1.28141,1560.9,1560.8,0.00961692]
[1744791010918,3.2078,1560.9,1560.8,1.29110692]
[1744791011115,1.28138,1561.0,1560.9,1.28141]
[1744791011116,2.9312,1561.0,1560.9,1.28141]
[1744791011310,4.21253,1561.0,1560.9,6.13541]
[1744791011515,5.36843,1561.0,1560.9,4.854]
[1744791011713,1.28141,1560.9,1560.8,0.00961692]
[1744791011908,6.19201,1560.9,1560.8,0.00961692]
[1744791012114,1.28169,1560.6,1560.5,46.93569]
[1744791012509,6.19223,1560.7,1560.6,1.28166]
[1744791012709,1.28166,1560.6,1560.5,46.93567]
[1744791012909,4.25296,1560.6,1560.5,4.854]
[1744791013107,1.28181,1560.5,1560.4,0.00961692]
[1744791013312,6.19241,1560.5,1560.4,0.00961692]
[1744791014124,6.19241,1560.5,1560.4,1.29143692]
[1744791015220,7.46524,1560.5,1560.4,1.29143692]
[1744791016118,6.1835,1560.5,1560.4,1.29143692]
[1744791016318,7.46524,1560.5,1560.4,1.29143692]
[1744791018328,7.46524,1560.5,1560.4,0.00961692]
[1744791018922,7.46524,1560.5,1560.4,1.29143692]
[1744791019328,7.46524,1560.5,1560.4,0.00961692]
[1744791019630,7.46524,1560.5,1560.4,1.29143692]
[1744791019830,2.9757,1560.5,1560.4,1.29143692]
[1744791020121,0.00961692,1560.6,1560.5,1.28174]
[1744791020327,0.00961692,1560.6,1560.5,7.78694]
[1744791021628,0.00961692,1560.6,1560.5,12.78694]
[1744791021818,0.00961692,1560.6,1560.5,13.97634]
[1744791023430,0.00961692,1560.6,1560.5,8.97634]
[1744791024325,0.00961692,1560.6,1560.5,13.97634]
[1744791025128,0.00961692,1560.6,1560.5,4.12134]
[1744791025327,1.28174,1560.5,1560.4,0.00961692]
[1744791025632,4.48954,1560.5,1560.4,0.00961692]
[1744791025830,4.48954,1560.5,1560.4,1.29143692]
[1744791026125,6.21424,1560.5,1560.4,0.00961692]
[1744791029238,6.21424,1560.5,1560.4,1.29143692]
[1744791029538,6.21424,1560.5,1560.4,0.00961692]
[1744791032726,3.2078,1560.5,1560.4,0.00961692]
[1744791032926,0.00961692,1560.6,1560.5,1.28174]
[1744791033133,0.00961692,1560.6,1560.5,3.03224]
[1744791033332,0.00961692,1560.6,1560.5,11.24004]
[1744791033531,0.00961692,1560.6,1560.5,8.03224]
[1744791034139,0.00961692,1560.6,1560.5,11.24004]
[1744791034541,0.00961692,1560.6,1560.5,8.03224]
[1744791034734,0.00961692,1560.6,1560.5,11.24004]
[1744791038234,6.92e-06,1560.6,1560.5,11.24004]
[1744791039442,12.52504195,1561.3,1561.2,1.28116]
[1744791039643,10.76264195,1561.3,1561.2,6.10116]
[1744791039938,6.33784195,1561.3,1561.2,6.10116]
[1744791040343,6.33784195,1561.3,1561.2,48.50506]
[1744791040643,6.34745887,1561.4,1561.3,1.28108]
[1744791040839,6.34745887,1561.4,1561.3,2.88498]
[1744791043041,1.28108,1561.3,1561.2,40.80961692]
[1744791043232,2.96488,1561.3,1561.2,42.09077692]
[1744791043834,1.6838,1561.3,1561.2,42.09077692]
[1744791044440,6.34745887,1561.4,1561.3,1.28108]
[1744791044640,8.05835887,1561.4,1561.3,1.28108]
[1744791044840,8.05835887,1561.4,1561.3,2.92128]
[1744791045247,6.34745887,1561.4,1561.3,2.92128]
[1744791045545,1.29061692,1561.4,1561.3,1.28108]
[1744791045744,3.00151692,1561.4,1561.3,1.28108]
[1744791047042,1.28108,1561.3,1561.2,42.09076692]
[1744791047347,2.90798,1561.3,1561.2,42.09076692]
[1744791048144,2.90798,1561.3,1561.2,40.80961692]
[1744791048346,7.90798,1561.3,1561.2,0.00961692]